[Event "*** Biggest EVER Titled Tuesday"]
[Site "Chess.com"]
[Date "2018.04.17"]
[Round "10"]
[White "twitchTriniCupid"]
[Black "FastChance"]
[Result "0-1"]
[WhiteElo "2186"]
[BlackElo "2666"]
[TimeControl "180+2"]
[EndTime "15:23:44 PDT"]
[Termination "FastChance won by resignation"]

1. d4 {[%clk 0:03:01.9]} 1... e6 {[%clk 0:03:01.2]} 2. c4 {[%clk 0:02:55.8]}
2... Bb4+ {[%clk 0:03:01.8]} 3. Nd2 {[%clk 0:02:54.9]} 3... Nf6 {[%clk
0:03:02.3]} 4. Nf3 {[%clk 0:02:54.7]} 4... O-O {[%clk 0:03:02.3]} 5. e3 {[%clk
0:02:55.6]} 5... b6 {[%clk 0:02:57.5]} 6. Be2 {[%clk 0:02:54.6]} 6... Bb7 {[%clk
0:02:58.7]} 7. a3 {[%clk 0:02:54.1]} 7... Be7 {[%clk 0:02:58.1]} 8. b4 {[%clk
0:02:52.3]} 8... c5 {[%clk 0:02:56.6]} 9. Rb1 {[%clk 0:02:47.9]} 9... cxd4
{[%clk 0:02:54.1]} 10. exd4 {[%clk 0:02:46.3]} 10... a5 {[%clk 0:02:46.1]} 11.
O-O {[%clk 0:02:29.8]} 11... axb4 {[%clk 0:02:46.6]} 12. axb4 {[%clk 0:02:31.7]}
12... Nc6 {[%clk 0:02:47.4]} 13. Qb3 {[%clk 0:02:30]} 13... Nxb4 {[%clk
0:02:35.1]} 14. Ba3 {[%clk 0:02:15.9]} 14... Bxf3 {[%clk 0:02:14.6]} 15. Bxf3
{[%clk 0:01:54]} 15... Nc6 {[%clk 0:02:15.1]} 16. Bxe7 {[%clk 0:01:54.2]} 16...
Qxe7 {[%clk 0:02:09.7]} 17. Bxc6 {[%clk 0:01:54.7]} 17... dxc6 {[%clk
0:02:11.6]} 18. Qxb6 {[%clk 0:01:55.2]} 18... Qd6 {[%clk 0:02:13.3]} 19. Nf3
{[%clk 0:01:34.1]} 19... Ne4 {[%clk 0:02:02]} 20. Qb2 {[%clk 0:01:18.6]} 20...
c5 {[%clk 0:02:01.5]} 21. Qc2 {[%clk 0:01:17.6]} 21... Nf6 {[%clk 0:01:56.4]}
22. Rfd1 {[%clk 0:01:16.5]} 22... cxd4 {[%clk 0:01:56.3]} 23. Rxd4 {[%clk
0:01:17.2]} 23... Qc5 {[%clk 0:01:51.6]} 24. g3 {[%clk 0:01:02.4]} 24... Rfc8
{[%clk 0:01:50.6]} 25. Kg2 {[%clk 0:01:02.8]} 25... h6 {[%clk 0:01:50.8]} 26.
Rb7 {[%clk 0:00:57.6]} 26... Qc6 {[%clk 0:01:44.8]} 27. Rb3 {[%clk 0:00:52.1]}
27... e5 {[%clk 0:01:37.9]} 28. Rd1 {[%clk 0:00:36.6]} 28... e4 {[%clk
0:01:31.4]} 29. Nd4 {[%clk 0:00:37.2]} 29... Qxc4 {[%clk 0:01:29.1]} 30. Qxc4
{[%clk 0:00:37.4]} 30... Rxc4 {[%clk 0:01:31]} 31. Nf5 {[%clk 0:00:37]} 31...
Rc2 {[%clk 0:01:24.6]} 32. Ne3 {[%clk 0:00:36.4]} 32... Rc5 {[%clk 0:01:21.7]}
33. Rdb1 {[%clk 0:00:29.3]} 33... Kh7 {[%clk 0:01:21.7]} 34. R1b2 {[%clk
0:00:28.5]} 34... Ra1 {[%clk 0:01:21.9]} 35. Rb1 {[%clk 0:00:27.9]} 35... Ra2
{[%clk 0:01:23]} 36. R1b2 {[%clk 0:00:29.1]} 36... Rxb2 {[%clk 0:01:16.6]} 37.
Rxb2 {[%clk 0:00:30.1]} 37... Kg6 {[%clk 0:01:17.9]} 38. Rb6 {[%clk 0:00:30.5]}
38... Kh7 {[%clk 0:01:14]} 39. Rb7 {[%clk 0:00:30.3]} 39... Kg6 {[%clk
0:01:10.9]} 40. Rb6 {[%clk 0:00:31.2]} 40... h5 {[%clk 0:01:10.3]} 41. h4 {[%clk
0:00:31.9]} 41... Kh7 {[%clk 0:01:02.3]} 42. Rb7 {[%clk 0:00:32.3]} 42... Kg8
{[%clk 0:00:59.9]} 43. Rb8+ {[%clk 0:00:33]} 43... Kh7 {[%clk 0:01:01.5]} 44.
Rb7 {[%clk 0:00:34.4]} 44... Kg6 {[%clk 0:01:03.1]} 45. Rb6 {[%clk 0:00:35.5]}
45... Ra5 {[%clk 0:01:02.7]} 46. Rd6 {[%clk 0:00:34.9]} 46... Kh6 {[%clk
0:01:00.5]} 47. Nc4 {[%clk 0:00:22.7]} 47... Rc5 {[%clk 0:00:59.3]} 48. Nd2
{[%clk 0:00:22.6]} 48... Kh7 {[%clk 0:00:58.3]} 49. Rd4 {[%clk 0:00:19.2]} 49...
Re5 {[%clk 0:00:58.3]} 50. Nc4 {[%clk 0:00:20.2]} 50... Re6 {[%clk 0:00:56.5]}
51. Ne3 {[%clk 0:00:21.1]} 51... g6 {[%clk 0:00:57.6]} 52. Rc4 {[%clk
0:00:21.5]} 52... Kg7 {[%clk 0:00:55.5]} 53. Rc5 {[%clk 0:00:22.7]} 53... Nd7
{[%clk 0:00:54.1]} 54. Rd5 {[%clk 0:00:23.1]} 54... Ne5 {[%clk 0:00:54]} 55. Nc2
{[%clk 0:00:17.5]} 55... Nd3 {[%clk 0:00:39.6]} 56. Nd4 {[%clk 0:00:17.6]} 56...
Rf6 {[%clk 0:00:41]} 57. f4 {[%clk 0:00:16.5]} 57... Rxf4 {[%clk 0:00:30.6]} 58.
Rxh5 {[%clk 0:00:11.8]} 58... Rf2+ {[%clk 0:00:28]} 0-1

[Event "*** Biggest EVER Titled Tuesday"]
[Site "Chess.com"]
[Date "2018.04.17"]
[Round "10"]
[White "Jospem"]
[Black "rasmussvane"]
[Result "1/2-1/2"]
[WhiteElo "2691"]
[BlackElo "2651"]
[TimeControl "180+2"]
[EndTime "15:23:47 PDT"]
[Termination "Game drawn by repetition"]

1. e4 {[%clk 0:03:01.8]} 1... c6 {[%clk 0:03:00.9]} 2. d4 {[%clk 0:03:02.7]}
2... d5 {[%clk 0:03:02.3]} 3. e5 {[%clk 0:03:04.6]} 3... Bf5 {[%clk 0:03:02.8]}
4. h4 {[%clk 0:03:05.5]} 4... h5 {[%clk 0:03:03.4]} 5. Bd3 {[%clk 0:03:05.8]}
5... Bxd3 {[%clk 0:03:04.4]} 6. Qxd3 {[%clk 0:03:07.7]} 6... Qa5+ {[%clk
0:03:05.5]} 7. Nd2 {[%clk 0:03:07.8]} 7... e6 {[%clk 0:03:05.6]} 8. Nf3 {[%clk
0:03:08.6]} 8... Nh6 {[%clk 0:03:04.9]} 9. O-O {[%clk 0:03:08.7]} 9... Nf5
{[%clk 0:03:05.9]} 10. c4 {[%clk 0:03:08.4]} 10... Be7 {[%clk 0:03:03.6]} 11. g3
{[%clk 0:03:08.3]} 11... O-O {[%clk 0:03:01.9]} 12. b3 {[%clk 0:03:08.4]} 12...
Rd8 {[%clk 0:03:01.5]} 13. Bb2 {[%clk 0:03:04.2]} 13... c5 {[%clk 0:03:02.1]}
14. cxd5 {[%clk 0:02:57.9]} 14... Rxd5 {[%clk 0:03:02.7]} 15. Nc4 {[%clk
0:02:59]} 15... Qd8 {[%clk 0:03:03.2]} 16. Ne3 {[%clk 0:02:57.3]} 16... Nxe3
{[%clk 0:03:03.6]} 17. fxe3 {[%clk 0:02:58.8]} 17... Nc6 {[%clk 0:02:55.1]} 18.
Qe4 {[%clk 0:02:49.3]} 18... cxd4 {[%clk 0:02:44.4]} 19. exd4 {[%clk 0:02:49.3]}
19... Rc8 {[%clk 0:02:44]} 20. Rf2 {[%clk 0:02:42.6]} 20... Ra5 {[%clk 0:02:22]}
21. Nd2 {[%clk 0:02:21.5]} 21... Qd5 {[%clk 0:02:13]} 22. Qf4 {[%clk 0:02:20.5]}
22... Rf8 {[%clk 0:02:13.5]} 23. Nc4 {[%clk 0:02:20.9]} 23... Ra6 {[%clk
0:02:04.3]} 24. Ne3 {[%clk 0:02:19.9]} 24... Qb5 {[%clk 0:02:01.3]} 25. g4
{[%clk 0:02:20.3]} 25... Nb4 {[%clk 0:01:49.3]} 26. a4 {[%clk 0:02:09.1]} 26...
Qd3 {[%clk 0:01:00.1]} 27. gxh5 {[%clk 0:01:55.2]} 27... Qh7 {[%clk 0:01:00]}
28. Qg4 {[%clk 0:01:33.3]} 28... Nd3 {[%clk 0:00:59.7]} 29. Rg2 {[%clk
0:01:32.4]} 29... Nxb2 {[%clk 0:01:00.4]} 30. Rxb2 {[%clk 0:01:33.8]} 30... Rc6
{[%clk 0:01:01.6]} 31. Nc4 {[%clk 0:01:32.5]} 31... Rd8 {[%clk 0:00:57.3]} 32.
Kh2 {[%clk 0:01:27.3]} 32... Rc7 {[%clk 0:00:48.6]} 33. Rg1 {[%clk 0:01:13.3]}
33... Rcd7 {[%clk 0:00:46.9]} 34. Rd2 {[%clk 0:01:12.7]} 34... Bb4 {[%clk
0:00:41.9]} 35. Rd3 {[%clk 0:01:11.5]} 35... Bf8 {[%clk 0:00:18]} 36. Rgg3
{[%clk 0:01:05]} 36... Bc5 {[%clk 0:00:15.8]} 37. Qg5 {[%clk 0:00:42.6]} 37...
Bxd4 {[%clk 0:00:16.7]} 38. Nd6 {[%clk 0:00:37.8]} 38... f6 {[%clk 0:00:13.2]}
39. Qxf6 {[%clk 0:00:26]} 39... Rxd6 {[%clk 0:00:10.6]} 40. Rxg7+ {[%clk
0:00:27.5]} 40... Qxg7 {[%clk 0:00:11.1]} 41. Rg3 {[%clk 0:00:29.4]} 41... Qxg3+
{[%clk 0:00:06.2]} 42. Kxg3 {[%clk 0:00:26.6]} 42... Rd5 {[%clk 0:00:06.9]} 43.
Qxe6+ {[%clk 0:00:26.1]} 43... Kh8 {[%clk 0:00:07.8]} 44. Qf6+ {[%clk
0:00:23.2]} 44... Kg8 {[%clk 0:00:08.3]} 45. Qg6+ {[%clk 0:00:24.1]} 45... Kh8
{[%clk 0:00:09.5]} 46. Qh6+ {[%clk 0:00:22.9]} 46... Kg8 {[%clk 0:00:10.7]} 47.
Qg6+ {[%clk 0:00:20]} 47... Kh8 {[%clk 0:00:11.4]} 48. Qf6+ {[%clk 0:00:21.6]}
48... Kg8 {[%clk 0:00:12.4]} 49. Qe6+ {[%clk 0:00:22.5]} 49... Kh8 {[%clk
0:00:13.6]} 50. Qh6+ {[%clk 0:00:22.6]} 50... Kg8 {[%clk 0:00:14.8]} 51. Qg5+
{[%clk 0:00:16.4]} 51... Kh8 {[%clk 0:00:14.4]} 52. Qf6+ {[%clk 0:00:17.4]}
52... Kg8 {[%clk 0:00:15.6]} 53. Qe6+ {[%clk 0:00:16.3]} 53... Kh8 {[%clk
0:00:16.7]} 54. Qf6+ {[%clk 0:00:17.5]} 54... Kg8 {[%clk 0:00:18]} 55. Qg6+
{[%clk 0:00:18.6]} 55... Kh8 {[%clk 0:00:19.2]} 56. Qf6+ {[%clk 0:00:20]}
1/2-1/2

[Event "*** Biggest EVER Titled Tuesday"]
[Site "Chess.com"]
[Date "2018.04.17"]
[Round "10"]
[White "sergeikim"]
[Black "chessking2151"]
[Result "1-0"]
[WhiteElo "2455"]
[BlackElo "2374"]
[TimeControl "180+2"]
[EndTime "15:24:01 PDT"]
[Termination "sergeikim won by resignation"]

1. d4 {[%clk 0:03:01.9]} 1... Nf6 {[%clk 0:02:59.9]} 2. c4 {[%clk 0:03:02.6]}
2... g6 {[%clk 0:03:00.1]} 3. Nc3 {[%clk 0:03:03.4]} 3... d5 {[%clk 0:03:01.1]}
4. cxd5 {[%clk 0:03:04.1]} 4... Nxd5 {[%clk 0:03:01.7]} 5. e4 {[%clk 0:03:05]}
5... Nxc3 {[%clk 0:03:02.5]} 6. bxc3 {[%clk 0:03:06]} 6... c5 {[%clk 0:03:04]}
7. Nf3 {[%clk 0:03:06.2]} 7... Bg7 {[%clk 0:03:04.8]} 8. Be2 {[%clk 0:03:06.5]}
8... O-O {[%clk 0:03:02.7]} 9. O-O {[%clk 0:03:06]} 9... cxd4 {[%clk 0:03:01.1]}
10. cxd4 {[%clk 0:03:05.9]} 10... Bg4 {[%clk 0:03:01]} 11. Be3 {[%clk
0:03:06.4]} 11... Nc6 {[%clk 0:02:59.7]} 12. e5 {[%clk 0:03:07.2]} 12... Qd7
{[%clk 0:02:41]} 13. Rb1 {[%clk 0:02:39.2]} 13... Rfd8 {[%clk 0:02:35.3]} 14. h3
{[%clk 0:02:15.5]} 14... Bf5 {[%clk 0:02:30.9]} 15. Rb2 {[%clk 0:02:05.3]} 15...
Rac8 {[%clk 0:02:22.1]} 16. Qb3 {[%clk 0:02:02.5]} 16... b6 {[%clk 0:02:15.4]}
17. Bb5 {[%clk 0:01:47.3]} 17... Be6 {[%clk 0:02:13.3]} 18. Qa4 {[%clk
0:01:46.6]} 18... Bd5 {[%clk 0:02:13.5]} 19. Nd2 {[%clk 0:01:37.7]} 19... Qe6
{[%clk 0:02:01.1]} 20. Ba6 {[%clk 0:01:19.6]} 20... Rb8 {[%clk 0:01:58.7]} 21.
Bb5 {[%clk 0:01:19.4]} 21... Na5 {[%clk 0:01:57.9]} 22. Rc1 {[%clk 0:01:14.8]}
22... Rbc8 {[%clk 0:01:45.3]} 23. Rbc2 {[%clk 0:01:15.2]} 23... Rxc2 {[%clk
0:01:43.6]} 24. Rxc2 {[%clk 0:01:16.1]} 24... Bb7 {[%clk 0:01:06.3]} 25. Rc7
{[%clk 0:01:06.3]} 25... Qd5 {[%clk 0:01:05.6]} 26. Nf3 {[%clk 0:00:51.1]} 26...
a6 {[%clk 0:00:48.5]} 27. Bf1 {[%clk 0:00:47.6]} 27... Rc8 {[%clk 0:00:39.4]}
28. Rxe7 {[%clk 0:00:40.6]} 28... Bc6 {[%clk 0:00:30.5]} 29. Qd1 {[%clk
0:00:28.3]} 29... Bf8 {[%clk 0:00:28.6]} 30. Ra7 {[%clk 0:00:25.2]} 30... Qxa2
{[%clk 0:00:22.7]} 31. Rxa6 {[%clk 0:00:25.5]} 31... Bb7 {[%clk 0:00:23.5]} 32.
Ra7 {[%clk 0:00:25.6]} 32... Qd5 {[%clk 0:00:24.8]} 33. Ng5 {[%clk 0:00:20.4]}
33... Nc4 {[%clk 0:00:22.8]} 34. Qf3 {[%clk 0:00:20.4]} 34... Nxe3 {[%clk
0:00:21.5]} 35. fxe3 {[%clk 0:00:18.7]} 35... Qxf3 {[%clk 0:00:15]} 36. gxf3
{[%clk 0:00:19.3]} 36... Bd5 {[%clk 0:00:15.6]} 37. e4 {[%clk 0:00:19.5]} 37...
Bb3 {[%clk 0:00:17.2]} 38. d5 {[%clk 0:00:20.3]} 38... Rc1 {[%clk 0:00:17.5]}
39. Kg2 {[%clk 0:00:18.2]} 39... Bh6 {[%clk 0:00:18.1]} 40. h4 {[%clk 0:00:18]}
40... Rc2+ {[%clk 0:00:18.9]} 41. Kg3 {[%clk 0:00:18.5]} 41... Bg7 {[%clk
0:00:19.3]} 42. f4 {[%clk 0:00:19]} 42... Rc3+ {[%clk 0:00:19.8]} 43. Nf3 {[%clk
0:00:19.6]} 43... Bd1 {[%clk 0:00:20.9]} 44. Bg2 {[%clk 0:00:19.8]} 44... Bf8
{[%clk 0:00:18.2]} 45. d6 {[%clk 0:00:20.2]} 45... Rd3 {[%clk 0:00:18.7]} 46.
Kf2 {[%clk 0:00:20.1]} 46... b5 {[%clk 0:00:18.3]} 47. Ng5 {[%clk 0:00:20.7]}
47... b4 {[%clk 0:00:13.1]} 48. Rb7 {[%clk 0:00:20.9]} 48... b3 {[%clk
0:00:14.1]} 49. Nxf7 {[%clk 0:00:21.7]} 49... Rd2+ {[%clk 0:00:11.9]} 50. Ke1
{[%clk 0:00:21.7]} 50... Rxg2 {[%clk 0:00:11.7]} 51. Kxd1 {[%clk 0:00:22.4]}
51... b2 {[%clk 0:00:13.3]} 52. Ng5 {[%clk 0:00:22.1]} 52... h6 {[%clk
0:00:08.7]} 53. Ne6 {[%clk 0:00:21.6]} 53... g5 {[%clk 0:00:08.6]} 54. hxg5
{[%clk 0:00:21.9]} 54... hxg5 {[%clk 0:00:09.7]} 55. Nxg5 {[%clk 0:00:22.8]}
55... Bh6 {[%clk 0:00:09.6]} 56. Rb8+ {[%clk 0:00:21.5]} 56... Kg7 {[%clk
0:00:10.7]} 57. d7 {[%clk 0:00:22.5]} 57... Bxg5 {[%clk 0:00:12]} 58. fxg5
{[%clk 0:00:22.1]} 58... Rg1+ {[%clk 0:00:12.1]} 59. Kc2 {[%clk 0:00:21.8]}
59... Rg2+ {[%clk 0:00:14]} 60. Kb1 {[%clk 0:00:21.5]} 1-0

[Event "*** Biggest EVER Titled Tuesday"]
[Site "Chess.com"]
[Date "2018.04.17"]
[Round "10"]
[White "Sam_ChessMood"]
[Black "carlesdc96"]
[Result "0-1"]
[WhiteElo "2631"]
[BlackElo "2479"]
[TimeControl "180+2"]
[EndTime "15:24:02 PDT"]
[Termination "carlesdc96 won by resignation"]

1. e4 {[%clk 0:03:01.9]} 1... e6 {[%clk 0:03:00.9]} 2. d4 {[%clk 0:03:02.3]}
2... d5 {[%clk 0:03:02.5]} 3. exd5 {[%clk 0:03:03.7]} 3... exd5 {[%clk
0:03:03.5]} 4. Nf3 {[%clk 0:03:05.1]} 4... Nc6 {[%clk 0:03:04.1]} 5. Bb5 {[%clk
0:02:57.3]} 5... Bd7 {[%clk 0:02:55.1]} 6. O-O {[%clk 0:02:57.3]} 6... Bd6
{[%clk 0:02:55.7]} 7. c4 {[%clk 0:02:53.3]} 7... dxc4 {[%clk 0:02:52.8]} 8. Bxc4
{[%clk 0:02:49.6]} 8... Nge7 {[%clk 0:02:52.5]} 9. Nc3 {[%clk 0:02:48.8]} 9...
O-O {[%clk 0:02:52.4]} 10. Bg5 {[%clk 0:02:48.4]} 10... Kh8 {[%clk 0:02:50]} 11.
Re1 {[%clk 0:02:42.4]} 11... f6 {[%clk 0:02:50.8]} 12. Bh4 {[%clk 0:02:43.5]}
12... Bg4 {[%clk 0:02:50.6]} 13. Ne4 {[%clk 0:02:07.1]} 13... Nf5 {[%clk
0:02:47.5]} 14. Bg3 {[%clk 0:02:02]} 14... Bxg3 {[%clk 0:02:45.8]} 15. hxg3
{[%clk 0:02:00.8]} 15... Nfxd4 {[%clk 0:02:45.5]} 16. Ned2 {[%clk 0:01:47.3]}
16... Ne5 {[%clk 0:02:38.7]} 17. Bf1 {[%clk 0:01:44.2]} 17... Ndxf3+ {[%clk
0:02:35.5]} 18. Nxf3 {[%clk 0:01:28]} 18... Qxd1 {[%clk 0:02:32.9]} 19. Rexd1
{[%clk 0:01:27.4]} 19... Nxf3+ {[%clk 0:02:28.3]} 20. gxf3 {[%clk 0:01:26.1]}
20... Bxf3 {[%clk 0:02:30.2]} 21. Rd7 {[%clk 0:01:27.1]} 21... c5 {[%clk
0:02:28.5]} 22. Bg2 {[%clk 0:01:22.2]} 22... Bxg2 {[%clk 0:02:23.5]} 23. Kxg2
{[%clk 0:01:23.4]} 23... b6 {[%clk 0:02:21.8]} 24. Rad1 {[%clk 0:01:08.2]} 24...
Kg8 {[%clk 0:02:22.2]} 25. a4 {[%clk 0:00:53.8]} 25... g6 {[%clk 0:01:54.3]} 26.
Re1 {[%clk 0:00:24]} 26... Rf7 {[%clk 0:01:53.8]} 27. Ree7 {[%clk 0:00:24.4]}
27... Rxe7 {[%clk 0:01:47.2]} 28. Rxe7 {[%clk 0:00:26.3]} 28... h5 {[%clk
0:01:40.4]} 29. b3 {[%clk 0:00:17.4]} 29... Kf8 {[%clk 0:01:36.5]} 30. Rh7
{[%clk 0:00:16.7]} 30... Kg8 {[%clk 0:01:37.7]} 31. Rb7 {[%clk 0:00:17.6]} 31...
g5 {[%clk 0:01:31.2]} 32. Kg1 {[%clk 0:00:17.4]} 32... Kf8 {[%clk 0:01:09.6]}
33. Kg2 {[%clk 0:00:17]} 33... Ke8 {[%clk 0:01:05.1]} 34. Rh7 {[%clk 0:00:17.6]}
34... Rd8 {[%clk 0:01:03.8]} 35. Rxa7 {[%clk 0:00:18.4]} 35... Rd7 {[%clk
0:00:59.3]} 36. Ra8+ {[%clk 0:00:17.3]} 36... Ke7 {[%clk 0:00:59]} 37. Rb8
{[%clk 0:00:18.7]} 37... Rd6 {[%clk 0:00:59.8]} 38. Rh8 {[%clk 0:00:13]} 38...
Ke6 {[%clk 0:00:56.5]} 39. Rxh5 {[%clk 0:00:12]} 39... Rd3 {[%clk 0:00:57.2]}
40. Rh8 {[%clk 0:00:11]} 40... Rxb3 {[%clk 0:00:57.5]} 41. Rb8 {[%clk
0:00:11.9]} 41... Rb4 {[%clk 0:00:58.8]} 42. f4 {[%clk 0:00:11.5]} 42... gxf4
{[%clk 0:00:59.6]} 43. gxf4 {[%clk 0:00:12.9]} 43... Kf5 {[%clk 0:01:00.8]} 44.
Kg3 {[%clk 0:00:13.2]} 44... Rb3+ {[%clk 0:01:00.8]} 45. Kf2 {[%clk 0:00:11]}
45... c4 {[%clk 0:01:00.5]} 46. Rc8 {[%clk 0:00:10.9]} 46... Rb4 {[%clk
0:01:01.6]} 47. Rc6 {[%clk 0:00:07.6]} 47... Kxf4 {[%clk 0:00:35.1]} 48. Rxf6+
{[%clk 0:00:07.8]} 48... Ke5 {[%clk 0:00:36.4]} 49. Rc6 {[%clk 0:00:05.4]} 49...
Kd5 {[%clk 0:00:36.4]} 50. Rh6 {[%clk 0:00:06.4]} 50... Kc5 {[%clk 0:00:34.9]}
51. Rh5+ {[%clk 0:00:06.6]} 51... Kd4 {[%clk 0:00:35.8]} 52. a5 {[%clk
0:00:06.3]} 52... bxa5 {[%clk 0:00:31.1]} 53. Rxa5 {[%clk 0:00:08.2]} 53... Kd3
{[%clk 0:00:32.3]} 54. Rd5+ {[%clk 0:00:08.4]} 54... Kc2 {[%clk 0:00:33.1]} 55.
Ke2 {[%clk 0:00:09.3]} 55... c3 {[%clk 0:00:34.4]} 56. Rd8 {[%clk 0:00:09.4]}
56... Re4+ {[%clk 0:00:34.6]} 57. Kf3 {[%clk 0:00:10.9]} 57... Re7 {[%clk
0:00:35.6]} 58. Rb8 {[%clk 0:00:11.6]} 58... Kc1 {[%clk 0:00:35.8]} 59. Kf4
{[%clk 0:00:11.9]} 59... c2 {[%clk 0:00:37]} 60. Kf5 {[%clk 0:00:11.3]} 60...
Rd7 {[%clk 0:00:37]} 61. Ke6 {[%clk 0:00:12.5]} 61... Rd3 {[%clk 0:00:37.2]} 62.
Ke5 {[%clk 0:00:12.1]} 62... Kd2 {[%clk 0:00:38]} 0-1

[Event "*** Biggest EVER Titled Tuesday"]
[Site "Chess.com"]
[Date "2018.04.17"]
[Round "10"]
[White "ChessTrail"]
[Black "TST2014"]
[Result "1-0"]
[WhiteElo "2463"]
[BlackElo "2334"]
[TimeControl "180+2"]
[EndTime "15:24:13 PDT"]
[Termination "ChessTrail won on time"]

1. e4 {[%clk 0:03:01.9]} 1... c5 {[%clk 0:02:58.4]} 2. Nf3 {[%clk 0:03:02.3]}
2... Nc6 {[%clk 0:02:59.3]} 3. d4 {[%clk 0:03:03.1]} 3... cxd4 {[%clk
0:03:00.8]} 4. Nxd4 {[%clk 0:03:04.7]} 4... Nf6 {[%clk 0:03:01.8]} 5. Nc3 {[%clk
0:03:05.8]} 5... d6 {[%clk 0:03:02.9]} 6. Bg5 {[%clk 0:03:06]} 6... e6 {[%clk
0:03:03.6]} 7. Qd2 {[%clk 0:03:06.9]} 7... a6 {[%clk 0:03:04.6]} 8. O-O-O {[%clk
0:03:07.3]} 8... Bd7 {[%clk 0:03:05.7]} 9. f3 {[%clk 0:03:06.9]} 9... b5 {[%clk
0:03:02.4]} 10. Nxc6 {[%clk 0:03:07.1]} 10... Bxc6 {[%clk 0:03:02.7]} 11. Ne2
{[%clk 0:03:07.9]} 11... Qc7 {[%clk 0:02:53.9]} 12. Nd4 {[%clk 0:03:08]} 12...
Bb7 {[%clk 0:02:50]} 13. Kb1 {[%clk 0:03:09]} 13... Be7 {[%clk 0:02:48]} 14. Bd3
{[%clk 0:03:05.4]} 14... O-O {[%clk 0:02:47.5]} 15. h4 {[%clk 0:03:04.9]} 15...
Rfd8 {[%clk 0:02:33.9]} 16. g4 {[%clk 0:03:04.2]} 16... d5 {[%clk 0:02:32.7]}
17. e5 {[%clk 0:03:04]} 17... Ne8 {[%clk 0:02:17]} 18. f4 {[%clk 0:02:51.9]}
18... b4 {[%clk 0:01:51.3]} 19. f5 {[%clk 0:02:37.2]} 19... Qxe5 {[%clk
0:01:47.2]} 20. Bxe7 {[%clk 0:02:35.5]} 20... Qxd4 {[%clk 0:01:45.6]} 21. fxe6
{[%clk 0:02:32.3]} 21... Qxg4 {[%clk 0:01:39.3]} 22. exf7+ {[%clk 0:02:21]}
22... Kxf7 {[%clk 0:01:39.3]} 23. Bxd8 {[%clk 0:02:18.6]} 23... Rxd8 {[%clk
0:01:38.1]} 24. Rdg1 {[%clk 0:02:19]} 24... Qe6 {[%clk 0:01:24.2]} 25. Qxb4
{[%clk 0:02:18.5]} 25... Bc6 {[%clk 0:01:19]} 26. Bxh7 {[%clk 0:02:19]} 26...
Nf6 {[%clk 0:01:18.1]} 27. Bg6+ {[%clk 0:02:18.6]} 27... Kg8 {[%clk 0:01:19.1]}
28. h5 {[%clk 0:02:16.1]} 28... d4 {[%clk 0:01:19.5]} 29. Rh2 {[%clk 0:02:11.3]}
29... Qe5 {[%clk 0:01:11.4]} 30. Qd2 {[%clk 0:02:05.1]} 30... Rb8 {[%clk
0:01:01.7]} 31. h6 {[%clk 0:01:54.7]} 31... d3 {[%clk 0:00:31.5]} 32. c3 {[%clk
0:01:52]} 32... Be4 {[%clk 0:00:26.6]} 33. Bxe4 {[%clk 0:01:42.3]} 33... Nxe4
{[%clk 0:00:26.9]} 34. Qg2 {[%clk 0:00:54.3]} 34... Nxc3+ {[%clk 0:00:20.1]} 35.
Ka1 {[%clk 0:00:53.6]} 35... Ne2 {[%clk 0:00:15.8]} 36. Qxg7+ {[%clk 0:00:47.7]}
36... Qxg7 {[%clk 0:00:17.3]} 37. Rxg7+ {[%clk 0:00:48.4]} 37... Kh8 {[%clk
0:00:18.9]} 38. Rd7 {[%clk 0:00:46.6]} 38... Rf8 {[%clk 0:00:18.3]} 39. a4
{[%clk 0:00:45.2]} 39... Rf1+ {[%clk 0:00:17.9]} 40. Ka2 {[%clk 0:00:46.3]}
40... Rf3 {[%clk 0:00:18.1]} 41. Rxe2 {[%clk 0:00:29.4]} 41... dxe2 {[%clk
0:00:18]} 42. Re7 {[%clk 0:00:31]} 42... Rf6 {[%clk 0:00:14]} 43. h7 {[%clk
0:00:29.5]} 43... e1=Q {[%clk 0:00:14]} 44. Rxe1 {[%clk 0:00:29.8]} 44... Kxh7
{[%clk 0:00:15.7]} 45. Rg1 {[%clk 0:00:30.3]} 45... Rf4 {[%clk 0:00:13.7]} 46.
Ka3 {[%clk 0:00:31.2]} 46... a5 {[%clk 0:00:13.8]} 47. Rg5 {[%clk 0:00:30.4]}
47... Rf3+ {[%clk 0:00:14.9]} 48. b3 {[%clk 0:00:31]} 48... Rf4 {[%clk
0:00:13.8]} 49. Rxa5 {[%clk 0:00:31.6]} 49... Kg7 {[%clk 0:00:15.4]} 50. Re5
{[%clk 0:00:32.5]} 50... Kf6 {[%clk 0:00:16.2]} 51. Re1 {[%clk 0:00:33.8]} 51...
Rf5 {[%clk 0:00:15.4]} 52. Re3 {[%clk 0:00:32.2]} 52... Rf4 {[%clk 0:00:15.1]}
53. a5 {[%clk 0:00:33.1]} 53... Rf5 {[%clk 0:00:16.2]} 54. Ka4 {[%clk
0:00:33.9]} 54... Rf4+ {[%clk 0:00:16.9]} 55. b4 {[%clk 0:00:35.3]} 55... Rf1
{[%clk 0:00:18.5]} 56. a6 {[%clk 0:00:36]} 56... Ra1+ {[%clk 0:00:20]} 57. Kb5
{[%clk 0:00:37.3]} 57... Kf5 {[%clk 0:00:21.5]} 58. Kb6 {[%clk 0:00:38.4]} 58...
Kf4 {[%clk 0:00:23.2]} 59. Re8 {[%clk 0:00:39.1]} 59... Rxa6+ {[%clk 0:00:22.7]}
60. Kxa6 {[%clk 0:00:39.6]} 1-0